{"text_format":"1","workbook":"xlsx","n_sheets":9,"sheets":["repport","Sheet2","Sheet3","Sheet4","Sheet5","Sheet6","Sheet7","Sheet8","Sheet9"],"not_rendered":{"charts":0,"images":0,"macros":0,"external_links":0,"defined_names":0,"comments":0,"pivot_tables":0},"unopened":[],"bounds":{"document_bytes":16777216,"sheet_cells":100000,"rows_first":2000,"rows_last":500,"rows_between":2000,"halvings":0,"cell_chars":16384,"cell_head_chars":4096},"cells_cut":0,"cells_raw":0,"read":"whole","date_system":"1900"}

{"sheet":"repport","index":0,"n_rows":21,"n_cols":9,"rows_kept":21,"cut":false,"hidden":false,"merged":[]}
[null,null,null,null,"تقرير المنصرف والمحصل والرصيد"]
[]
["sheet name",1,2,3,4,5,"المحصل - المنصرف","اجمالى ما تم صرفه","اجمالى المحصل"]
[]
["Sheet6",100,-200,-900,0,0,-1000,-1100,100]
["Sheet7",1000,56,7,6,-80,989,-80,1069]
["Sheet8",9,10,-8,-5,-8,-2,-21,19]
["Sheet9"]
[]
[null,null,null,null,null,"الخليةG4","الخلية h4","الخلية I4"]
[]
[]
[null,null,null,null,null,null,null,"التقرير استدعاء للخلايا e4&F4&G4&H4&i4"]
[null,null,null,null,null,null,null,"المحصل - المنصرف خلية A4"]
[null,null,null,null,null,"الخاية F4",null,"اجمالى ما تم صرفه J2"]
[null,null,null,null,"الخلية E4",null,null,"اجمالى المحصل J4"]
[null,null,null,null,null,null,null,"هذه الخلايا من كل الشيتس اريد استدعائها لعمل تقرير يتم طبعه يوميا مع عدم استدعاء الشيتس منsheet2:sheet4"]
[null,null,null,null,null,null,null,"لوجود تقارير بهم"]
[null,null,null,null,null,null,null,"اذا كانت الخلايا من E4:I4=0"]
[null,null,null,null,null,null,null,"لا تستدعى الى التقرير ليس لنا بها حاجة وستأخذ مكان في الصفحة يعيق الطباعة"]
[null,null,null,null,null,null,null,"مشكورين يا طيبين"]

{"sheet":"Sheet2","index":1,"n_rows":0,"n_cols":0,"rows_kept":0,"cut":false,"hidden":false,"merged":[]}

{"sheet":"Sheet3","index":2,"n_rows":0,"n_cols":0,"rows_kept":0,"cut":false,"hidden":false,"merged":[]}

{"sheet":"Sheet4","index":3,"n_rows":0,"n_cols":0,"rows_kept":0,"cut":false,"hidden":false,"merged":[]}

{"sheet":"Sheet5","index":4,"n_rows":0,"n_cols":0,"rows_kept":0,"cut":false,"hidden":false,"merged":[]}

{"sheet":"Sheet6","index":5,"n_rows":7,"n_cols":10,"rows_kept":7,"cut":false,"hidden":false,"merged":[]}
[null,null,null,null,1,2,3,4,5,"اجمالى ما تم صرفه"]
[null,null,null,null,null,null,null,null,null,{"$f":"SUMIF($E$5:$I$10000,\"<0\")","v":-1100}]
["المحصل-المنصرف",null,null,null,null,null,null,null,null,"اجمالى المحصل"]
[{"$f":"SUM(E5:I50000)","v":-1000},null,null,null,{"$f":"SUM(E5:E7000)","v":100},{"$f":"SUM(F5:F7000)","v":-200},-900,0,0,{"$f":"SUMIF($E$5:$I$10000,\">0\")","v":100}]
["2020-08-20",null,null,null,100]
["2020-07-22",null,null,null,null,-200]
["2020-10-10",null,null,null,null,null,-900]

{"sheet":"Sheet7","index":6,"n_rows":9,"n_cols":10,"rows_kept":9,"cut":false,"hidden":false,"merged":[]}
[null,null,null,null,1,2,3,4,5,"اجمالى ما تم صرفه"]
[null,null,null,null,null,null,null,null,null,{"$f":"SUMIF($E$5:$I$10000,\"<0\")","v":-80}]
["المحصل-المنصرف",null,null,null,null,null,null,null,null,"اجمالى المحصل"]
[{"$f":"SUM(E5:I50000)","v":989},null,null,null,{"$f":"SUM(E5:E7000)","v":1000},{"$f":"SUM(F5:F7000)","v":56},7,6,-80,{"$f":"SUMIF($E$5:$I$10000,\">0\")","v":1069}]
["2020-01-01",null,null,null,1000]
["2020-08-05",null,null,null,null,56]
["2020-09-08",null,null,null,null,null,7]
["2020-09-09",null,null,null,null,null,null,6]
["2020-09-10",null,null,null,null,null,null,null,-80]

{"sheet":"Sheet8","index":7,"n_rows":9,"n_cols":10,"rows_kept":9,"cut":false,"hidden":false,"merged":[]}
[null,null,null,null,1,2,3,4,5,"اجمالى ما تم صرفه"]
[null,null,null,null,null,null,null,null,null,{"$f":"SUMIF($E$5:$I$10000,\"<0\")","v":-21}]
["المحصل-المنصرف",null,null,null,null,null,null,null,null,"اجمالى المحصل"]
[{"$f":"SUM(E5:I50000)","v":-2},null,null,null,{"$f":"SUM(E5:E7000)","v":9},{"$f":"SUM(F5:F7000)","v":10},-8,-5,-8,{"$f":"SUMIF($E$5:$I$10000,\">0\")","v":19}]
["2020-08-20",null,null,null,9]
["2020-07-22",null,null,null,null,10]
["2020-10-10",null,null,null,null,null,-8]
["2020-10-11",null,null,null,null,null,null,-5]
["2020-10-12",null,null,null,null,null,null,null,-8]

{"sheet":"Sheet9","index":8,"n_rows":7,"n_cols":10,"rows_kept":7,"cut":false,"hidden":false,"merged":[]}
[null,null,null,null,1,2,3,4,5,"اجمالى ما تم صرفه"]
[null,null,null,null,null,null,null,null,null,{"$f":"SUMIF($E$5:$I$10000,\"<0\")","v":-1100}]
["المحصل-المنصرف",null,null,null,null,null,null,null,null,"اجمالى المحصل"]
[{"$f":"SUM(E5:I50000)","v":-1000},null,null,null,{"$f":"SUM(E5:E7000)","v":100},{"$f":"SUM(F5:F7000)","v":-200},-900,0,0,{"$f":"SUMIF($E$5:$I$10000,\">0\")","v":100}]
["2020-08-20",null,null,null,100]
["2020-07-22",null,null,null,null,-200]
["2020-10-10",null,null,null,null,null,-900]